[Event "Titled Tuesday Blitz July 25 Early 2023"]
[White "Prydun, Andriy"]
[Black "Chitlange Sakshi"]
[WhiteFideId "14145898"]
[BlackFideId "35002899"]
[WhiteElo "2320"]
[BlackElo "2496"]
[Result "1-0"]
[Round "2"]
[TimeControl "180+2"]
[Date "2023.07.25"]
[WhiteClock "0:00:10"]
[BlackClock "0:00:02"]
[Board "189"]

1. e4 {[%clk 0:02:13]}  c6 {[%clk 0:02:57]} 2. d4 {[%clk 0:02:13]}  d5 {[%clk 0:02:58]} 3. Nc3 {[%clk 0:02:13]}  dxe4 {[%clk 0:02:58]} 4. Nxe4 {[%clk 0:02:13]}  Nf6 {[%clk 0:02:59]} 5. Nc5 {[%clk 0:02:11]}  b6 {[%clk 0:02:55]} 6. Nb3 {[%clk 0:02:10]}  Bf5 {[%clk 0:02:54]} 7. Bd3 {[%clk 0:02:08]}  Bxd3 {[%clk 0:02:54]} 8. Qxd3 {[%clk 0:02:09]}  e6 {[%clk 0:02:55]} 9. a4 {[%clk 0:02:06]}  Nbd7 {[%clk 0:02:49]} 10. a5 {[%clk 0:02:06]}  Bd6 {[%clk 0:02:43]} 11. Ne2 {[%clk 0:02:03]}  O-O {[%clk 0:02:42]} 12. Bf4 {[%clk 0:02:01]}  Bxf4 {[%clk 0:02:32]} 13. Nxf4 {[%clk 0:02:02]}  Qc7 {[%clk 0:02:33]} 14. Qg3 {[%clk 0:01:59]}  c5 {[%clk 0:02:23]} 15. O-O {[%clk 0:01:52]}  Rac8 {[%clk 0:02:06]} 16. c3 {[%clk 0:01:33]}  cxd4 {[%clk 0:02:01]} 17. Nxd4 {[%clk 0:01:32]}  Nc5 {[%clk 0:01:48]} 18. Nb5 {[%clk 0:01:23]}  Qd7 {[%clk 0:01:41]} 19. Na3 {[%clk 0:01:09]}  Rfd8 {[%clk 0:01:38]} 20. axb6 {[%clk 0:01:07]}  axb6 {[%clk 0:01:37]} 21. Nc4 {[%clk 0:01:08]}  Qb5 {[%clk 0:01:33]} 22. Ne5 {[%clk 0:01:03]}  Nb3 {[%clk 0:01:30]} 23. Nxe6 {[%clk 0:00:26]}  fxe6 {[%clk 0:01:24]} 24. c4 {[%clk 0:00:19]}  Qb4 {[%clk 0:01:12]} 25. Ra7 {[%clk 0:00:19]}  Ne8 {[%clk 0:00:25]} 26. Qf3 {[%clk 0:00:12]}  Qf8 {[%clk 0:00:20]} 27. Rf7 {[%clk 0:00:11]}  Qd6 {[%clk 0:00:16]} 28. Rb7 {[%clk 0:00:03]}  Nf6 {[%clk 0:00:13]} 29. Nf7 {[%clk 0:00:03]}  Qf8 {[%clk 0:00:10]} 30. Nxd8 {[%clk 0:00:03]}  Nc5 {[%clk 0:00:09]} 31. Nxe6 {[%clk 0:00:03]}  Nxe6 {[%clk 0:00:10]} 32. Rxb6 {[%clk 0:00:03]}  Nc5 {[%clk 0:00:10]} 33. Rb5 {[%clk 0:00:03]}  Ncd7 {[%clk 0:00:09]} 34. b3 {[%clk 0:00:01]}  Qe7 {[%clk 0:00:08]} 35. h3 {[%clk 0:00:02]}  Ne5 {[%clk 0:00:08]} 36. Qe2 {[%clk 0:00:02]}  Nfd7 {[%clk 0:00:07]} 37. Re1 {[%clk 0:00:02]}  Qf6 {[%clk 0:00:05]} 38. Rxe5 {[%clk 0:00:02]}  Nxe5 {[%clk 0:00:05]} 39. Qxe5 {[%clk 0:00:03]}  Qxe5 {[%clk 0:00:04]} 40. Rxe5 {[%clk 0:00:04]}  Rb8 {[%clk 0:00:05]} 41. Re3 {[%clk 0:00:05]}  Rb4 {[%clk 0:00:05]} 42. Rc3 {[%clk 0:00:06]}  Kf7 {[%clk 0:00:05]} 43. c5 {[%clk 0:00:06]}  Ke6 {[%clk 0:00:06]} 44. c6 {[%clk 0:00:07]}  Rb8 {[%clk 0:00:04]} 45. b4 {[%clk 0:00:08]}  Kd6 {[%clk 0:00:04]} 46. c7 {[%clk 0:00:08]}  Rc8 {[%clk 0:00:04]} 47. Kf1 {[%clk 0:00:08]}  Kd7 {[%clk 0:00:02]} 48. Ke2 {[%clk 0:00:08]}  Re8+ {[%clk 0:00:01]} 49. Kd3 {[%clk 0:00:09]}  Kc8 {[%clk 0:00:02]} 50. b5 {[%clk 0:00:09]}  Re5 {[%clk 0:00:02]} 51. b6 {[%clk 0:00:09]}  Rb5 {[%clk 0:00:03]} 52. Rc6 {[%clk 0:00:10]}  Rb2 {[%clk 0:00:02]} 53. Ke4 {[%clk 0:00:10]}  Rxf2 {[%clk 0:00:02]} 54. b7+ {[%clk 0:00:10]} 1-0


[Site "https://www.chess.com"]

[Event "Titled Tuesday Blitz July 25 Early 2023"]
[White "Luukkonen, Tommi"]
[Black "SicilianPanzer"]
[WhiteFideId "501808"]
[WhiteElo "2495"]
[BlackElo "2314"]
[Result "0-1"]
[Round "2"]
[TimeControl "180+2"]
[Date "2023.07.25"]
[WhiteClock "0:00:01"]
[BlackClock "0:00:07"]
[Board "190"]

1. e4 {[%clk 0:03:00]}  c5 {[%clk 0:02:58]} 2. d4 {[%clk 0:02:59]}  cxd4 {[%clk 0:02:57]} 3. Qxd4 {[%clk 0:03:00]}  Nc6 {[%clk 0:02:57]} 4. Qd3 {[%clk 0:03:00]}  g6 {[%clk 0:02:56]} 5. Nc3 {[%clk 0:02:58]}  Bg7 {[%clk 0:02:55]} 6. Nf3 {[%clk 0:02:58]}  Nf6 {[%clk 0:02:50]} 7. Be2 {[%clk 0:02:57]}  O-O {[%clk 0:02:49]} 8. O-O {[%clk 0:02:57]}  b6 {[%clk 0:02:46]} 9. Nd5 {[%clk 0:02:53]}  Nxd5 {[%clk 0:02:35]} 10. exd5 {[%clk 0:02:52]}  Nb4 {[%clk 0:02:14]} 11. Qd2 {[%clk 0:02:52]}  a5 {[%clk 0:02:10]} 12. c3 {[%clk 0:02:37]}  Na6 {[%clk 0:02:07]} 13. Rd1 {[%clk 0:02:35]}  Bb7 {[%clk 0:01:58]} 14. Qf4 {[%clk 0:02:23]}  Rc8 {[%clk 0:01:36]} 15. Be3 {[%clk 0:02:22]}  a4 {[%clk 0:01:05]} 16. Qxa4 {[%clk 0:02:17]}  Nc5 {[%clk 0:01:03]} 17. Qh4 {[%clk 0:02:16]}  e6 {[%clk 0:00:44]} 18. Qxd8 {[%clk 0:01:26]}  Rfxd8 {[%clk 0:00:45]} 19. dxe6 {[%clk 0:01:15]}  fxe6 {[%clk 0:00:42]} 20. Bd4 {[%clk 0:01:06]}  Bh6 {[%clk 0:00:41]} 21. Ne5 {[%clk 0:01:00]}  Na4 {[%clk 0:00:35]} 22. Rab1 {[%clk 0:00:50]}  Bg7 {[%clk 0:00:21]} 23. Nc4 {[%clk 0:00:44]}  Ba6 {[%clk 0:00:17]} 24. Bxg7 {[%clk 0:00:37]}  Kxg7 {[%clk 0:00:16]} 25. Rd4 {[%clk 0:00:36]}  d5 {[%clk 0:00:15]} 26. Ne5 {[%clk 0:00:27]}  Nxc3 {[%clk 0:00:12]} 27. bxc3 {[%clk 0:00:23]}  Bxe2 {[%clk 0:00:12]} 28. Rb3 {[%clk 0:00:18]}  Bc4 {[%clk 0:00:10]} 29. Rb2 {[%clk 0:00:14]}  b5 {[%clk 0:00:09]} 30. f4 {[%clk 0:00:12]}  Kf6 {[%clk 0:00:08]} 31. Rdd2 {[%clk 0:00:12]}  Ra8 {[%clk 0:00:07]} 32. Kf2 {[%clk 0:00:12]}  Ra3 {[%clk 0:00:07]} 33. Rdc2 {[%clk 0:00:08]}  Rda8 {[%clk 0:00:07]} 34. Nxc4 {[%clk 0:00:04]}  bxc4 {[%clk 0:00:08]} 35. Ke3 {[%clk 0:00:03]}  e5 {[%clk 0:00:07]} 36. fxe5+ {[%clk 0:00:03]}  Kxe5 {[%clk 0:00:07]} 37. g4 {[%clk 0:00:03]}  d4+ {[%clk 0:00:07]} 38. Kd2 {[%clk 0:00:02]}  d3 {[%clk 0:00:07]} 39. Rc1 {[%clk 0:00:01]}  Rxa2 {[%clk 0:00:07]} 0-1


[Site "https://www.chess.com"]

[Event "Titled Tuesday Blitz July 25 Early 2023"]
[White "Wimalasuriya, Kasun M."]
[Black "Osmak, Yuliia"]
[WhiteFideId "9906789"]
[BlackFideId "14101602"]
[WhiteElo "2314"]
[BlackElo "2493"]
[Result "0-1"]
[Round "2"]
[TimeControl "180+2"]
[Date "2023.07.25"]
[WhiteClock "0:00:08"]
[BlackClock "0:00:37"]
[Board "191"]

1. d4 {[%clk 0:02:24]}  Nf6 {[%clk 0:02:57]} 2. c4 {[%clk 0:02:24]}  g6 {[%clk 0:02:57]} 3. Nf3 {[%clk 0:02:24]}  Bg7 {[%clk 0:02:57]} 4. g3 {[%clk 0:02:24]}  c6 {[%clk 0:02:54]} 5. Bg2 {[%clk 0:02:23]}  d5 {[%clk 0:02:55]} 6. O-O {[%clk 0:02:23]}  O-O {[%clk 0:02:55]} 7. cxd5 {[%clk 0:02:21]}  cxd5 {[%clk 0:02:54]} 8. Nc3 {[%clk 0:02:20]}  Nc6 {[%clk 0:02:53]} 9. Bg5 {[%clk 0:02:18]}  Ne4 {[%clk 0:02:49]} 10. Bf4 {[%clk 0:02:15]}  Nxc3 {[%clk 0:02:43]} 11. bxc3 {[%clk 0:02:15]}  Bf5 {[%clk 0:02:33]} 12. h3 {[%clk 0:02:11]}  Be4 {[%clk 0:02:30]} 13. Qb3 {[%clk 0:01:58]}  Na5 {[%clk 0:02:28]} 14. Qb4 {[%clk 0:01:54]}  Rc8 {[%clk 0:02:22]} 15. Nd2 {[%clk 0:01:50]}  Bxg2 {[%clk 0:02:20]} 16. Kxg2 {[%clk 0:01:49]}  b6 {[%clk 0:02:14]} 17. Rac1 {[%clk 0:01:34]}  Nc4 {[%clk 0:02:13]} 18. Rfe1 {[%clk 0:01:30]}  Qd7 {[%clk 0:02:08]} 19. Nf3 {[%clk 0:01:27]}  Qb7 {[%clk 0:01:58]} 20. h4 {[%clk 0:01:24]}  h6 {[%clk 0:01:53]} 21. Qb1 {[%clk 0:01:21]}  Rc6 {[%clk 0:01:49]} 22. e4 {[%clk 0:01:20]}  dxe4 {[%clk 0:01:43]} 23. Qxe4 {[%clk 0:01:20]}  e6 {[%clk 0:01:40]} 24. Rh1 {[%clk 0:00:42]}  Rfc8 {[%clk 0:01:32]} 25. h5 {[%clk 0:00:33]}  g5 {[%clk 0:01:30]} 26. Bxg5 {[%clk 0:00:30]}  hxg5 {[%clk 0:01:30]} 27. h6 {[%clk 0:00:31]}  Bf6 {[%clk 0:01:27]} 28. h7+ {[%clk 0:00:27]}  Kh8 {[%clk 0:01:26]} 29. Rh6 {[%clk 0:00:22]}  Bg7 {[%clk 0:01:18]} 30. Rh5 {[%clk 0:00:19]}  R6c7 {[%clk 0:01:12]} 31. Qxb7 {[%clk 0:00:19]}  Rxb7 {[%clk 0:01:13]} 32. Nxg5 {[%clk 0:00:20]}  Nd6 {[%clk 0:01:07]} 33. Nf3 {[%clk 0:00:19]}  Ne4 {[%clk 0:01:05]} 34. c4 {[%clk 0:00:18]}  Nf6 {[%clk 0:01:04]} 35. Rh2 {[%clk 0:00:18]}  Rbc7 {[%clk 0:01:03]} 36. Ne5 {[%clk 0:00:17]}  Ne4 {[%clk 0:00:54]} 37. Rh4 {[%clk 0:00:16]}  Bxe5 {[%clk 0:00:53]} 38. dxe5 {[%clk 0:00:15]}  Rxc4 {[%clk 0:00:48]} 39. Rd1 {[%clk 0:00:11]}  Ng5 {[%clk 0:00:44]} 40. Rxc4 {[%clk 0:00:09]}  Rxc4 {[%clk 0:00:45]} 41. Rd7 {[%clk 0:00:09]}  Ra4 {[%clk 0:00:41]} 42. f4 {[%clk 0:00:09]}  Nxh7 {[%clk 0:00:41]} 43. Rxf7 {[%clk 0:00:09]}  Rxa2+ {[%clk 0:00:40]} 44. Kh3 {[%clk 0:00:09]}  Kg8 {[%clk 0:00:39]} 45. Re7 {[%clk 0:00:08]}  Nf8 {[%clk 0:00:38]} 46. g4 {[%clk 0:00:08]}  Ra3+ {[%clk 0:00:37]} 47. Kh4 {[%clk 0:00:08]}  Ng6+ {[%clk 0:00:37]} 0-1


[Site "https://www.chess.com"]

[Event "Titled Tuesday Blitz July 25 Early 2023"]
[White "Petrovic, Aleksa"]
[Black "Theytookourjobs"]
[WhiteFideId "967629"]
[WhiteElo "2486"]
[BlackElo "2307"]
[Result "1-0"]
[Round "2"]
[TimeControl "180+2"]
[Date "2023.07.25"]
[WhiteClock "0:00:06"]
[BlackClock "0:01:27"]
[Board "193"]

1. e4 {[%clk 0:02:38]}  e6 {[%clk 0:03:00]} 2. d4 {[%clk 0:02:37]}  d5 {[%clk 0:03:00]} 3. Nd2 {[%clk 0:02:38]}  Be7 {[%clk 0:02:59]} 4. e5 {[%clk 0:02:34]}  c5 {[%clk 0:02:59]} 5. c3 {[%clk 0:02:34]}  Nc6 {[%clk 0:02:58]} 6. Ngf3 {[%clk 0:02:31]}  f6 {[%clk 0:02:58]} 7. exf6 {[%clk 0:02:30]}  Nxf6 {[%clk 0:02:59]} 8. dxc5 {[%clk 0:02:29]}  Bxc5 {[%clk 0:02:59]} 9. Be2 {[%clk 0:02:28]}  O-O {[%clk 0:02:59]} 10. O-O {[%clk 0:02:23]}  e5 {[%clk 0:02:58]} 11. Nb3 {[%clk 0:02:20]}  Bd6 {[%clk 0:02:57]} 12. c4 {[%clk 0:02:18]}  d4 {[%clk 0:02:53]} 13. Bg5 {[%clk 0:02:15]}  Qe8 {[%clk 0:02:31]} 14. Re1 {[%clk 0:02:10]}  Qg6 {[%clk 0:02:29]} 15. c5 {[%clk 0:02:05]}  Bc7 {[%clk 0:02:29]} 16. Bc4+ {[%clk 0:01:51]}  Kh8 {[%clk 0:02:29]} 17. Bxf6 {[%clk 0:01:35]}  Rxf6 {[%clk 0:02:26]} 18. Bd5 {[%clk 0:01:22]}  Bh3 {[%clk 0:02:19]} 19. g3 {[%clk 0:01:15]}  Raf8 {[%clk 0:02:16]} 20. Nbd2 {[%clk 0:00:52]}  Bg4 {[%clk 0:02:13]} 21. Qb3 {[%clk 0:00:43]}  Qh5 {[%clk 0:01:46]} 22. Nh4 {[%clk 0:00:18]}  Na5 {[%clk 0:01:41]} 23. Qa3 {[%clk 0:00:13]}  Rxf2 {[%clk 0:01:41]} 24. Rf1 {[%clk 0:00:12]}  Rxf1+ {[%clk 0:01:40]} 25. Rxf1 {[%clk 0:00:12]}  Rxf1+ {[%clk 0:01:40]} 26. Nxf1 {[%clk 0:00:12]}  Qg5 {[%clk 0:01:33]} 27. c6 {[%clk 0:00:11]}  Qf6 {[%clk 0:01:31]} 28. cxb7 {[%clk 0:00:09]}  Be2 {[%clk 0:01:31]} 29. Nf3 {[%clk 0:00:07]}  Bxf1 {[%clk 0:01:29]} 30. Qxa5 {[%clk 0:00:06]}  Bxa5 {[%clk 0:01:28]} 31. b8=Q+ {[%clk 0:00:05]}  Bd8 {[%clk 0:01:28]} 32. Kxf1 {[%clk 0:00:05]}  h6 {[%clk 0:01:27]} 33. Qxe5 {[%clk 0:00:05]}  Qa6+ {[%clk 0:01:26]} 34. Kg2 {[%clk 0:00:04]}  Bf6 {[%clk 0:01:26]} 35. Qe8+ {[%clk 0:00:04]}  Kh7 {[%clk 0:01:26]} 36. Bg8+ {[%clk 0:00:05]}  Kh8 {[%clk 0:01:26]} 37. Bf7+ {[%clk 0:00:05]}  Kh7 {[%clk 0:01:27]} 38. Qg8# {[%clk 0:00:06]} 1-0


[Site "https://www.chess.com"]

[Event "Titled Tuesday Blitz July 25 Early 2023"]
[White "UgarteCesar"]
[Black "Perske, Thore"]
[BlackFideId "12902195"]
[WhiteElo "2305"]
[BlackElo "2486"]
[Result "0-1"]
[Round "2"]
[TimeControl "180+2"]
[Date "2023.07.25"]
[WhiteClock "0:01:08"]
[BlackClock "0:01:27"]
[Board "194"]

1. c4 {[%clk 0:02:59]}  c6 {[%clk 0:02:59]} 2. g3 {[%clk 0:02:59]}  d5 {[%clk 0:02:59]} 3. Bg2 {[%clk 0:02:58]}  Nf6 {[%clk 0:02:59]} 4. b3 {[%clk 0:02:58]}  Bf5 {[%clk 0:02:48]} 5. Bb2 {[%clk 0:02:57]}  e6 {[%clk 0:02:48]} 6. d3 {[%clk 0:02:57]}  h6 {[%clk 0:02:47]} 7. Nd2 {[%clk 0:02:57]}  Nbd7 {[%clk 0:02:46]} 8. Ngf3 {[%clk 0:02:57]}  Be7 {[%clk 0:02:45]} 9. O-O {[%clk 0:02:57]}  O-O {[%clk 0:02:44]} 10. Re1 {[%clk 0:02:56]}  Bh7 {[%clk 0:02:43]} 11. e4 {[%clk 0:02:45]}  dxe4 {[%clk 0:02:41]} 12. dxe4 {[%clk 0:02:40]}  Nc5 {[%clk 0:02:41]} 13. Ne5 {[%clk 0:02:34]}  Nd3 {[%clk 0:02:31]} 14. Nxd3 {[%clk 0:02:34]}  Qxd3 {[%clk 0:02:32]} 15. Qe2 {[%clk 0:02:25]}  Rfd8 {[%clk 0:02:30]} 16. Rad1 {[%clk 0:02:07]}  Qc2 {[%clk 0:01:49]} 17. Bxf6 {[%clk 0:01:28]}  Bxf6 {[%clk 0:01:47]} 18. e5 {[%clk 0:01:29]}  Be7 {[%clk 0:01:44]} 19. Be4 {[%clk 0:01:28]}  Bxe4 {[%clk 0:01:37]} 20. Rc1 {[%clk 0:01:08]}  Qxd2 {[%clk 0:01:31]} 21. Qxe4 {[%clk 0:01:08]}  Bc5 {[%clk 0:01:27]} 0-1


[Site "https://www.chess.com"]

[Event "Titled Tuesday Blitz July 25 Early 2023"]
[White "MateoReyes"]
[Black "kiwibobo"]
[WhiteElo "2485"]
[BlackElo "2303"]
[Result "0-1"]
[Round "2"]
[TimeControl "180+2"]
[Date "2023.07.25"]
[WhiteClock "0:00:51"]
[BlackClock "0:00:12"]
[Board "195"]

1. Nf3 {[%clk 0:03:00]}  Nf6 {[%clk 0:02:57]} 2. d4 {[%clk 0:02:59]}  g6 {[%clk 0:02:57]} 3. c4 {[%clk 0:02:59]}  Bg7 {[%clk 0:02:57]} 4. Nc3 {[%clk 0:02:59]}  d5 {[%clk 0:02:58]} 5. cxd5 {[%clk 0:02:57]}  Nxd5 {[%clk 0:02:59]} 6. e4 {[%clk 0:02:57]}  Nxc3 {[%clk 0:03:00]} 7. bxc3 {[%clk 0:02:57]}  c5 {[%clk 0:03:00]} 8. Be2 {[%clk 0:02:54]}  O-O {[%clk 0:02:56]} 9. Be3 {[%clk 0:02:52]}  Qa5 {[%clk 0:02:54]} 10. Qd2 {[%clk 0:02:50]}  Nc6 {[%clk 0:02:53]} 11. Rc1 {[%clk 0:02:41]}  Rd8 {[%clk 0:02:44]} 12. d5 {[%clk 0:02:37]}  e6 {[%clk 0:02:37]} 13. c4 {[%clk 0:02:34]}  Qxd2+ {[%clk 0:02:30]} 14. Kxd2 {[%clk 0:02:22]}  b6 {[%clk 0:02:27]} 15. Rhd1 {[%clk 0:02:20]}  f5 {[%clk 0:01:14]} 16. Ng5 {[%clk 0:01:55]}  fxe4 {[%clk 0:01:07]} 17. Ke1 {[%clk 0:01:53]}  exd5 {[%clk 0:01:03]} 18. cxd5 {[%clk 0:01:52]}  Ne5 {[%clk 0:00:42]} 19. Nxe4 {[%clk 0:01:50]}  Bf5 {[%clk 0:00:39]} 20. Ng3 {[%clk 0:01:45]}  Bg4 {[%clk 0:00:32]} 21. f3 {[%clk 0:01:39]}  Bd7 {[%clk 0:00:31]} 22. Kf2 {[%clk 0:01:36]}  Rf8 {[%clk 0:00:29]} 23. Kg1 {[%clk 0:01:34]}  Rae8 {[%clk 0:00:28]} 24. Ne4 {[%clk 0:01:31]}  Ng4 {[%clk 0:00:23]} 25. Bf2 {[%clk 0:01:11]}  Nxf2 {[%clk 0:00:22]} 26. Kxf2 {[%clk 0:01:10]}  Rxe4 {[%clk 0:00:22]} 27. d6 {[%clk 0:01:07]}  Rd4 {[%clk 0:00:22]} 28. Bc4+ {[%clk 0:01:06]}  Kh8 {[%clk 0:00:20]} 29. Rxd4 {[%clk 0:01:05]}  Bxd4+ {[%clk 0:00:20]} 30. Kf1 {[%clk 0:01:03]}  Rf6 {[%clk 0:00:20]} 31. Re1 {[%clk 0:01:02]}  Rxd6 {[%clk 0:00:20]} 32. h4 {[%clk 0:01:01]}  Kg7 {[%clk 0:00:19]} 33. g4 {[%clk 0:01:00]}  h5 {[%clk 0:00:18]} 34. g5 {[%clk 0:01:00]}  b5 {[%clk 0:00:14]} 35. Be2 {[%clk 0:00:58]}  Be6 {[%clk 0:00:13]} 36. Kg2 {[%clk 0:00:58]}  Bc4 {[%clk 0:00:13]} 37. Bd1 {[%clk 0:00:57]}  Re6 {[%clk 0:00:11]} 38. Rh1 {[%clk 0:00:55]}  Bxa2 {[%clk 0:00:11]} 39. f4 {[%clk 0:00:53]}  Bd5+ {[%clk 0:00:12]} 40. Bf3 {[%clk 0:00:52]}  Bxf3+ {[%clk 0:00:12]} 41. Kxf3 {[%clk 0:00:52]}  Re3+ {[%clk 0:00:12]} 42. Kg2 {[%clk 0:00:52]}  b4 {[%clk 0:00:13]} 43. Rc1 {[%clk 0:00:51]}  b3 {[%clk 0:00:12]} 0-1


[Site "https://www.chess.com"]

[Event "Titled Tuesday Blitz July 25 Early 2023"]
[White "Schut, Han"]
[Black "marik_spb"]
[WhiteFideId "1005561"]
[WhiteElo "2301"]
[BlackElo "2485"]
[Result "0-1"]
[Round "2"]
[TimeControl "180+2"]
[Date "2023.07.25"]
[WhiteClock "0:00:15"]
[BlackClock "0:00:54"]
[Board "196"]

1. e4 {[%clk 0:02:57]}  c6 {[%clk 0:02:59]} 2. d4 {[%clk 0:02:56]}  d5 {[%clk 0:02:56]} 3. exd5 {[%clk 0:02:56]}  cxd5 {[%clk 0:02:57]} 4. c4 {[%clk 0:02:57]}  e6 {[%clk 0:02:57]} 5. Nc3 {[%clk 0:02:58]}  Bb4 {[%clk 0:02:57]} 6. Nf3 {[%clk 0:02:57]}  Nf6 {[%clk 0:02:57]} 7. cxd5 {[%clk 0:02:58]}  Nxd5 {[%clk 0:02:56]} 8. Qc2 {[%clk 0:02:58]}  O-O {[%clk 0:02:56]} 9. Bd3 {[%clk 0:02:59]}  g6 {[%clk 0:02:54]} 10. h4 {[%clk 0:02:59]}  Nc6 {[%clk 0:02:51]} 11. h5 {[%clk 0:02:59]}  Nxc3 {[%clk 0:02:46]} 12. bxc3 {[%clk 0:02:58]}  Nxd4 {[%clk 0:02:38]} 13. Nxd4 {[%clk 0:02:57]}  Qxd4 {[%clk 0:02:39]} 14. cxb4 {[%clk 0:02:49]}  Qxa1 {[%clk 0:02:38]} 15. hxg6 {[%clk 0:02:49]}  hxg6 {[%clk 0:02:36]} 16. Ke2 {[%clk 0:02:40]}  Qe5+ {[%clk 0:02:26]} 17. Kf1 {[%clk 0:02:36]}  Qg7 {[%clk 0:02:02]} 18. Bb2 {[%clk 0:02:17]}  e5 {[%clk 0:01:51]} 19. f4 {[%clk 0:02:11]}  Re8 {[%clk 0:01:15]} 20. Bxe5 {[%clk 0:01:53]}  Rxe5 {[%clk 0:01:08]} 21. fxe5 {[%clk 0:01:54]}  Qxe5 {[%clk 0:01:07]} 22. Qc1 {[%clk 0:00:25]}  Bf5 {[%clk 0:00:59]} 23. Be2 {[%clk 0:00:19]}  Re8 {[%clk 0:00:55]} 24. Bf3 {[%clk 0:00:14]}  Bd3+ {[%clk 0:00:54]} 25. Kg1 {[%clk 0:00:14]}  Qd4+ {[%clk 0:00:53]} 26. Kh2 {[%clk 0:00:15]}  Qh4+ {[%clk 0:00:54]} 27. Kg1 {[%clk 0:00:15]}  Re1+ {[%clk 0:00:54]} 0-1


[Site "https://www.chess.com"]

[Event "Titled Tuesday Blitz July 25 Early 2023"]
[White "Mmukka"]
[Black "arturdailima"]
[WhiteElo "2484"]
[BlackElo "2301"]
[Result "1-0"]
[Round "2"]
[TimeControl "180+2"]
[Date "2023.07.25"]
[WhiteClock "0:00:36"]
[BlackClock "0:00:57"]
[Board "197"]

1. e4 {[%clk 0:03:00]}  c5 {[%clk 0:03:00]} 2. Nf3 {[%clk 0:02:59]}  d6 {[%clk 0:03:01]} 3. d4 {[%clk 0:03:00]}  cxd4 {[%clk 0:03:02]} 4. Nxd4 {[%clk 0:03:01]}  Nf6 {[%clk 0:03:02]} 5. Nc3 {[%clk 0:03:01]}  a6 {[%clk 0:03:03]} 6. h3 {[%clk 0:03:00]}  e6 {[%clk 0:03:02]} 7. g4 {[%clk 0:03:00]}  Nfd7 {[%clk 0:03:03]} 8. Bg2 {[%clk 0:02:59]}  Be7 {[%clk 0:02:54]} 9. O-O {[%clk 0:02:57]}  Nc6 {[%clk 0:02:52]} 10. Be3 {[%clk 0:02:49]}  O-O {[%clk 0:02:51]} 11. f4 {[%clk 0:02:43]}  Nxd4 {[%clk 0:02:51]} 12. Bxd4 {[%clk 0:02:43]}  e5 {[%clk 0:02:48]} 13. Be3 {[%clk 0:02:33]}  exf4 {[%clk 0:02:47]} 14. Bxf4 {[%clk 0:02:33]}  Ne5 {[%clk 0:02:47]} 15. Nd5 {[%clk 0:02:31]}  Be6 {[%clk 0:02:46]} 16. b3 {[%clk 0:02:26]}  Bg5 {[%clk 0:02:37]} 17. Bg3 {[%clk 0:01:55]}  Bh4 {[%clk 0:02:35]} 18. Bh2 {[%clk 0:01:53]}  Rc8 {[%clk 0:02:32]} 19. c4 {[%clk 0:01:53]}  b5 {[%clk 0:02:17]} 20. cxb5 {[%clk 0:01:52]}  axb5 {[%clk 0:02:17]} 21. Qd4 {[%clk 0:01:51]}  Qa5 {[%clk 0:02:09]} 22. a4 {[%clk 0:01:38]}  bxa4 {[%clk 0:02:04]} 23. Rxa4 {[%clk 0:01:38]}  Qc5 {[%clk 0:02:00]} 24. Qxc5 {[%clk 0:01:24]}  Rxc5 {[%clk 0:01:58]} 25. b4 {[%clk 0:01:24]}  Rc2 {[%clk 0:01:34]} 26. Rb1 {[%clk 0:00:56]}  Rb8 {[%clk 0:01:29]} 27. b5 {[%clk 0:00:55]}  h6 {[%clk 0:01:15]} 28. b6 {[%clk 0:00:55]}  Bxd5 {[%clk 0:01:14]} 29. Bxe5 {[%clk 0:00:46]}  dxe5 {[%clk 0:01:11]} 30. exd5 {[%clk 0:00:46]}  Rxb6 {[%clk 0:01:05]} 31. Rxb6 {[%clk 0:00:41]}  Bf2+ {[%clk 0:01:05]} 32. Kh1 {[%clk 0:00:37]}  Bxb6 {[%clk 0:00:58]} 33. Ra8+ {[%clk 0:00:36]}  Kh7 {[%clk 0:00:58]} 34. Be4+ {[%clk 0:00:36]}  g6 {[%clk 0:00:57]} 35. Bxc2 {[%clk 0:00:36]} 1-0


[Site "https://www.chess.com"]